[Event "Titled Tuesday Blitz May 9 Early 2023"]
[White "Gutkin, Ilya"]
[Black "Chemin, Justo Reinaldo"]
[WhiteFideId "16203470"]
[BlackFideId "2101580"]
[WhiteElo "2265"]
[BlackElo "1940"]
[Result "1-0"]
[Round "07"]
[TimeControl "180+2"]
[Date "2023.05.09"]
[WhiteClock "0:02:13"]
[BlackClock "0:00:38"]

1. e4 {[%clk 0:03:00]}  e6 {[%clk 0:03:00]} 2. d4 {[%clk 0:02:58]}  d5 {[%clk 0:03:00]} 3. exd5 {[%clk 0:02:55]}  exd5 {[%clk 0:03:00]} 4. Nc3 {[%clk 0:02:56]}  c6 {[%clk 0:02:56]} 5. Bd3 {[%clk 0:02:55]}  Bd6 {[%clk 0:02:56]} 6. Nge2 {[%clk 0:02:56]}  Ne7 {[%clk 0:02:56]} 7. Bf4 {[%clk 0:02:55]}  O-O {[%clk 0:02:53]} 8. Qd2 {[%clk 0:02:54]}  Ng6 {[%clk 0:02:49]} 9. Bxd6 {[%clk 0:02:53]}  Qxd6 {[%clk 0:02:49]} 10. h4 {[%clk 0:02:52]}  Re8 {[%clk 0:02:42]} 11. O-O-O {[%clk 0:02:50]}  Nf8 {[%clk 0:02:26]} 12. h5 {[%clk 0:02:48]}  h6 {[%clk 0:02:23]} 13. f3 {[%clk 0:02:47]}  Nbd7 {[%clk 0:02:22]} 14. g4 {[%clk 0:02:47]}  Qf6 {[%clk 0:02:10]} 15. f4 {[%clk 0:02:42]}  Ne6 {[%clk 0:02:02]} 16. Rdg1 {[%clk 0:02:32]}  Ndf8 {[%clk 0:01:37]} 17. g5 {[%clk 0:02:30]}  hxg5 {[%clk 0:01:36]} 18. fxg5 {[%clk 0:02:30]}  Qe7 {[%clk 0:01:27]} 19. g6 {[%clk 0:02:25]}  f6 {[%clk 0:01:04]} 20. h6 {[%clk 0:02:23]}  gxh6 {[%clk 0:00:52]} 21. g7 {[%clk 0:02:20]}  Nxg7 {[%clk 0:00:49]} 22. Qxh6 {[%clk 0:02:16]}  Ne6 {[%clk 0:00:39]} 23. Qh8+ {[%clk 0:02:12]}  Kf7 {[%clk 0:00:38]} 24. Bg6# {[%clk 0:02:13]} 1-0


[Site "https://www.chess.com"]

[Event "Titled Tuesday Blitz May 9 Early 2023"]
[White "Manukian, Artak"]
[Black "Srdanovic, Jovana"]
[WhiteFideId "13301373"]
[BlackFideId "954810"]
[WhiteElo "2130"]
[BlackElo "2169"]
[Result "1-0"]
[Round "07"]
[TimeControl "180+2"]
[Date "2023.05.09"]
[WhiteClock "0:00:39"]
[BlackClock "0:00:01"]

1. e4 {[%clk 0:03:00]}  c6 {[%clk 0:02:58]} 2. d4 {[%clk 0:03:00]}  d5 {[%clk 0:02:58]} 3. e5 {[%clk 0:03:00]}  Na6 {[%clk 0:02:58]} 4. c4 {[%clk 0:02:59]}  dxc4 {[%clk 0:02:54]} 5. Bxc4 {[%clk 0:02:58]}  Bf5 {[%clk 0:02:52]} 6. a3 {[%clk 0:02:55]}  e6 {[%clk 0:02:52]} 7. Nc3 {[%clk 0:02:53]}  Nc7 {[%clk 0:02:51]} 8. Nf3 {[%clk 0:02:52]}  h6 {[%clk 0:02:49]} 9. O-O {[%clk 0:02:50]}  Ne7 {[%clk 0:02:47]} 10. Qe2 {[%clk 0:02:49]}  Ned5 {[%clk 0:02:45]} 11. Ne4 {[%clk 0:02:46]}  Be7 {[%clk 0:02:28]} 12. Rd1 {[%clk 0:02:39]}  O-O {[%clk 0:02:27]} 13. Bd2 {[%clk 0:02:30]}  Qd7 {[%clk 0:01:45]} 14. Rac1 {[%clk 0:02:28]}  Rad8 {[%clk 0:01:42]} 15. h3 {[%clk 0:02:24]}  Nb6 {[%clk 0:01:36]} 16. Bd3 {[%clk 0:02:22]}  Na4 {[%clk 0:01:16]} 17. Bf4 {[%clk 0:02:13]}  Nd5 {[%clk 0:01:03]} 18. Bg3 {[%clk 0:02:11]}  Qc7 {[%clk 0:00:53]} 19. Nd6 {[%clk 0:02:07]}  Bxd3 {[%clk 0:00:47]} 20. Rxd3 {[%clk 0:02:06]}  Bxd6 {[%clk 0:00:40]} 21. exd6 {[%clk 0:02:06]}  Qc8 {[%clk 0:00:21]} 22. Ne5 {[%clk 0:02:01]}  Nab6 {[%clk 0:00:20]} 23. b4 {[%clk 0:01:45]}  Nd7 {[%clk 0:00:21]} 24. b5 {[%clk 0:01:42]}  Nxe5 {[%clk 0:00:21]} 25. dxe5 {[%clk 0:01:42]}  Qd7 {[%clk 0:00:18]} 26. bxc6 {[%clk 0:01:41]}  bxc6 {[%clk 0:00:18]} 27. Qh5 {[%clk 0:01:30]}  Qb7 {[%clk 0:00:16]} 28. Bh4 {[%clk 0:01:21]}  Rd7 {[%clk 0:00:16]} 29. Rg3 {[%clk 0:01:19]}  Qb2 {[%clk 0:00:15]} 30. Re1 {[%clk 0:01:07]}  Qd2 {[%clk 0:00:14]} 31. Re2 {[%clk 0:00:59]}  Qd1+ {[%clk 0:00:12]} 32. Kh2 {[%clk 0:01:00]}  g6 {[%clk 0:00:06]} 33. Qxh6 {[%clk 0:00:38]}  Qxe2 {[%clk 0:00:05]} 34. Bf6 {[%clk 0:00:38]}  Nxf6 {[%clk 0:00:01]} 35. exf6 {[%clk 0:00:38]}  Qh5 {[%clk 0:00:01]} 36. Qg7# {[%clk 0:00:39]} 1-0


[Site "https://www.chess.com"]

[Event "Titled Tuesday Blitz May 9 Early 2023"]
[White "Harriott, Tyrell"]
[Black "Thorhallsson, Simon"]
[WhiteFideId "2086484"]
[BlackFideId "2310090"]
[WhiteElo "2107"]
[BlackElo "2108"]
[Result "0-1"]
[Round "07"]
[TimeControl "180+2"]
[Date "2023.05.09"]
[WhiteClock "0:00:47"]
[BlackClock "0:01:26"]

1. d4 {[%clk 0:03:00]}  Nf6 {[%clk 0:02:59]} 2. e3 {[%clk 0:03:01]}  g6 {[%clk 0:02:56]} 3. Bd3 {[%clk 0:03:01]}  Bg7 {[%clk 0:02:57]} 4. f4 {[%clk 0:03:02]}  O-O {[%clk 0:02:56]} 5. Nf3 {[%clk 0:03:02]}  d6 {[%clk 0:02:56]} 6. O-O {[%clk 0:03:03]}  Nc6 {[%clk 0:02:53]} 7. e4 {[%clk 0:03:02]}  e5 {[%clk 0:02:53]} 8. d5 {[%clk 0:03:03]}  Nd4 {[%clk 0:02:51]} 9. fxe5 {[%clk 0:03:03]}  dxe5 {[%clk 0:02:47]} 10. Be3 {[%clk 0:03:01]}  Ng4 {[%clk 0:02:42]} 11. Bd2 {[%clk 0:02:59]}  Nxf3+ {[%clk 0:02:24]} 12. Qxf3 {[%clk 0:02:58]}  f5 {[%clk 0:02:24]} 13. Nc3 {[%clk 0:02:49]}  c6 {[%clk 0:02:19]} 14. dxc6 {[%clk 0:02:43]}  bxc6 {[%clk 0:02:17]} 15. exf5 {[%clk 0:02:41]}  gxf5 {[%clk 0:02:12]} 16. Qxc6 {[%clk 0:02:38]}  Rb8 {[%clk 0:02:02]} 17. h3 {[%clk 0:02:21]}  Qd4+ {[%clk 0:01:58]} 18. Kh1 {[%clk 0:02:18]}  Nf2+ {[%clk 0:01:57]} 19. Rxf2 {[%clk 0:02:09]}  Qxf2 {[%clk 0:01:57]} 20. Bg5 {[%clk 0:02:01]}  Bb7 {[%clk 0:01:49]} 21. Qe6+ {[%clk 0:01:24]}  Kh8 {[%clk 0:01:48]} 22. Rg1 {[%clk 0:01:18]}  Qg3 {[%clk 0:01:43]} 23. Nd5 {[%clk 0:01:06]}  Bxd5 {[%clk 0:01:41]} 24. Qxd5 {[%clk 0:01:05]}  Qxg5 {[%clk 0:01:41]} 25. Bc4 {[%clk 0:01:01]}  Rxb2 {[%clk 0:01:36]} 26. Bb3 {[%clk 0:01:00]}  e4 {[%clk 0:01:31]} 27. Qa5 {[%clk 0:00:57]}  Qg3 {[%clk 0:01:28]} 28. Qxa7 {[%clk 0:00:47]}  Be5 {[%clk 0:01:26]} 0-1


[Site "https://www.chess.com"]

[Event "Titled Tuesday Blitz May 9 Early 2023"]
[White "Sanhueza, Cristian"]
[Black "Todorovic, Bojan"]
[WhiteFideId "116815"]
[BlackFideId "917087"]
[WhiteElo "2174"]
[BlackElo "2266"]
[Result "1-0"]
[Round "07"]
[TimeControl "180+2"]
[Date "2023.05.09"]
[WhiteClock "0:00:02"]
[BlackClock "0:00:00"]

1. e4 {[%clk 0:03:00]}  g6 {[%clk 0:02:59]} 2. d4 {[%clk 0:03:00]}  Bg7 {[%clk 0:02:59]} 3. Be3 {[%clk 0:03:01]}  d6 {[%clk 0:02:57]} 4. Nc3 {[%clk 0:03:01]}  a6 {[%clk 0:02:57]} 5. Qd2 {[%clk 0:02:59]}  Nd7 {[%clk 0:02:56]} 6. Nf3 {[%clk 0:03:00]}  b5 {[%clk 0:02:55]} 7. Bd3 {[%clk 0:02:59]}  Bb7 {[%clk 0:02:54]} 8. O-O {[%clk 0:02:59]}  Ngf6 {[%clk 0:02:52]} 9. a3 {[%clk 0:02:58]}  O-O {[%clk 0:02:50]} 10. Rfe1 {[%clk 0:02:58]}  e5 {[%clk 0:02:45]} 11. dxe5 {[%clk 0:02:53]}  Nxe5 {[%clk 0:02:41]} 12. Nxe5 {[%clk 0:02:54]}  dxe5 {[%clk 0:02:41]} 13. h3 {[%clk 0:02:54]}  Qd6 {[%clk 0:02:35]} 14. Rad1 {[%clk 0:02:50]}  c5 {[%clk 0:02:29]} 15. Bg5 {[%clk 0:02:28]}  c4 {[%clk 0:02:13]} 16. Bf1 {[%clk 0:02:26]}  Qxd2 {[%clk 0:02:05]} 17. Rxd2 {[%clk 0:02:27]}  Rfd8 {[%clk 0:02:04]} 18. Rxd8+ {[%clk 0:01:56]}  Rxd8 {[%clk 0:02:03]} 19. f3 {[%clk 0:01:57]}  h6 {[%clk 0:01:57]} 20. Bh4 {[%clk 0:01:53]}  g5 {[%clk 0:01:52]} 21. Bf2 {[%clk 0:01:53]}  Bf8 {[%clk 0:01:45]} 22. Rd1 {[%clk 0:01:51]}  Rxd1 {[%clk 0:01:43]} 23. Nxd1 {[%clk 0:01:52]}  Nd7 {[%clk 0:01:41]} 24. Ne3 {[%clk 0:01:50]}  Bc5 {[%clk 0:01:39]} 25. Nf5 {[%clk 0:01:51]}  Bxf2+ {[%clk 0:01:38]} 26. Kxf2 {[%clk 0:01:52]}  h5 {[%clk 0:01:33]} 27. h4 {[%clk 0:01:52]}  gxh4 {[%clk 0:01:30]} 28. Nxh4 {[%clk 0:01:52]}  Nc5 {[%clk 0:01:27]} 29. Nf5 {[%clk 0:01:39]}  Kf8 {[%clk 0:01:16]} 30. Ke3 {[%clk 0:01:38]}  Bc8 {[%clk 0:01:13]} 31. Ng3 {[%clk 0:01:13]}  h4 {[%clk 0:01:11]} 32. Ne2 {[%clk 0:01:14]}  Be6 {[%clk 0:01:04]} 33. f4 {[%clk 0:01:07]}  f6 {[%clk 0:00:59]} 34. Ng1 {[%clk 0:01:00]}  Na4 {[%clk 0:00:55]} 35. Nf3 {[%clk 0:00:38]}  exf4+ {[%clk 0:00:52]} 36. Kxf4 {[%clk 0:00:35]}  Nxb2 {[%clk 0:00:52]} 37. Nxh4 {[%clk 0:00:33]}  Nd1 {[%clk 0:00:48]} 38. e5 {[%clk 0:00:28]}  Ke7 {[%clk 0:00:46]} 39. exf6+ {[%clk 0:00:19]}  Kxf6 {[%clk 0:00:45]} 40. g4 {[%clk 0:00:19]}  Nc3 {[%clk 0:00:42]} 41. g5+ {[%clk 0:00:20]}  Ke7 {[%clk 0:00:37]} 42. Ke5 {[%clk 0:00:20]}  Bg8 {[%clk 0:00:31]} 43. g6 {[%clk 0:00:16]}  Nb1 {[%clk 0:00:30]} 44. Nf5+ {[%clk 0:00:16]}  Kd7 {[%clk 0:00:29]} 45. Bh3 {[%clk 0:00:15]}  Kd8 {[%clk 0:00:20]} 46. Nd6 {[%clk 0:00:08]}  Nxa3 {[%clk 0:00:17]} 47. Be6 {[%clk 0:00:09]}  b4 {[%clk 0:00:09]} 48. Bxg8 {[%clk 0:00:08]}  b3 {[%clk 0:00:10]} 49. cxb3 {[%clk 0:00:08]}  c3 {[%clk 0:00:10]} 50. Nb7+ {[%clk 0:00:04]}  Ke7 {[%clk 0:00:07]} 51. Nc5 {[%clk 0:00:01]}  c2 {[%clk 0:00:05]} 52. Nd3 {[%clk 0:00:02]}  Kf8 {[%clk 0:00:03]} 53. Bc4 {[%clk 0:00:02]}  Nb5 {[%clk 0:00:00]} 54. Kf6 {[%clk 0:00:02]} 1-0


[Site "https://www.chess.com"]

[Event "Titled Tuesday Blitz May 9 Early 2023"]
[White "ElenGajger"]
[Black "De Souza, Cristiano Gomes"]
[BlackFideId "2151758"]
[WhiteElo "2469"]
[BlackElo "2068"]
[Result "1-0"]
[Round "07"]
[TimeControl "180+2"]
[Date "2023.05.09"]
[WhiteClock "0:01:47"]
[BlackClock "0:01:54"]

1. e4 {[%clk 0:02:59]}  c5 {[%clk 0:02:59]} 2. Nc3 {[%clk 0:02:58]}  d6 {[%clk 0:02:58]} 3. f4 {[%clk 0:02:58]}  a6 {[%clk 0:02:58]} 4. Nf3 {[%clk 0:02:55]}  Bg4 {[%clk 0:02:58]} 5. h3 {[%clk 0:02:54]}  Bxf3 {[%clk 0:02:58]} 6. Qxf3 {[%clk 0:02:55]}  Nc6 {[%clk 0:02:58]} 7. Bc4 {[%clk 0:02:54]}  Nd4 {[%clk 0:02:57]} 8. Qf2 {[%clk 0:02:53]}  g6 {[%clk 0:02:57]} 9. d3 {[%clk 0:02:53]}  Bg7 {[%clk 0:02:56]} 10. O-O {[%clk 0:02:52]}  Nf6 {[%clk 0:02:46]} 11. e5 {[%clk 0:02:49]}  dxe5 {[%clk 0:02:45]} 12. fxe5 {[%clk 0:02:48]}  Nh5 {[%clk 0:02:27]} 13. Qxf7+ {[%clk 0:02:28]}  Kd7 {[%clk 0:02:26]} 14. Qd5+ {[%clk 0:02:28]}  Kc7 {[%clk 0:02:24]} 15. Qxc5+ {[%clk 0:02:28]}  Kb8 {[%clk 0:02:24]} 16. Rf2 {[%clk 0:02:09]}  b6 {[%clk 0:02:11]} 17. Qd5 {[%clk 0:02:01]}  Ra7 {[%clk 0:02:06]} 18. Be3 {[%clk 0:01:55]}  Qxd5 {[%clk 0:02:05]} 19. Nxd5 {[%clk 0:01:53]}  Nf5 {[%clk 0:02:03]} 20. Bxb6 {[%clk 0:01:51]}  Rb7 {[%clk 0:02:02]} 21. Bxa6 {[%clk 0:01:49]}  Rxb6 {[%clk 0:02:00]} 22. Nxb6 {[%clk 0:01:48]}  Bxe5 {[%clk 0:02:00]} 23. Nd7+ {[%clk 0:01:46]}  Ka7 {[%clk 0:01:58]} 24. Nxe5 {[%clk 0:01:47]}  Kxa6 {[%clk 0:01:54]} 25. g4 {[%clk 0:01:47]} 1-0


[Site "https://www.chess.com"]

[Event "Titled Tuesday Blitz May 9 Early 2023"]
[White "Begunov, Konstantin"]
[Black "Vifleemskaia, Svetlana"]
[WhiteFideId "4118510"]
[BlackFideId "4129490"]
[WhiteElo "2050"]
[BlackElo "1930"]
[Result "0-1"]
[Round "07"]
[TimeControl "180+2"]
[Date "2023.05.09"]
[WhiteClock "0:00:12"]
[BlackClock "0:00:55"]

1. d4 {[%clk 0:03:00]}  Nf6 {[%clk 0:02:59]} 2. c4 {[%clk 0:03:00]}  e6 {[%clk 0:02:59]} 3. Nf3 {[%clk 0:03:00]}  Bb4+ {[%clk 0:03:00]} 4. Nbd2 {[%clk 0:03:00]}  Qe7 {[%clk 0:03:00]} 5. a3 {[%clk 0:03:00]}  Bxd2+ {[%clk 0:03:00]} 6. Bxd2 {[%clk 0:03:01]}  Ne4 {[%clk 0:03:00]} 7. Bf4 {[%clk 0:03:00]}  d6 {[%clk 0:03:00]} 8. e3 {[%clk 0:03:01]}  f5 {[%clk 0:03:00]} 9. Nd2 {[%clk 0:02:59]}  Nxd2 {[%clk 0:02:55]} 10. Qxd2 {[%clk 0:03:00]}  e5 {[%clk 0:02:48]} 11. Bg3 {[%clk 0:02:15]}  f4 {[%clk 0:02:38]} 12. Bd3 {[%clk 0:01:56]}  fxg3 {[%clk 0:02:37]} 13. hxg3 {[%clk 0:01:57]}  e4 {[%clk 0:02:32]} 14. Bc2 {[%clk 0:01:53]}  Bg4 {[%clk 0:02:28]} 15. Qb4 {[%clk 0:01:33]}  b6 {[%clk 0:02:11]} 16. Kd2 {[%clk 0:01:22]}  c5 {[%clk 0:02:04]} 17. Qc3 {[%clk 0:01:15]}  Nd7 {[%clk 0:01:57]} 18. f3 {[%clk 0:01:11]}  exf3 {[%clk 0:01:46]} 19. Bg6+ {[%clk 0:01:10]}  Kd8 {[%clk 0:01:42]} 20. gxf3 {[%clk 0:00:47]}  Bxf3 {[%clk 0:01:39]} 21. Rxh7 {[%clk 0:00:47]}  Rxh7 {[%clk 0:01:33]} 22. Bxh7 {[%clk 0:00:48]}  Kc7 {[%clk 0:01:32]} 23. Rf1 {[%clk 0:00:42]}  Nf6 {[%clk 0:01:23]} 24. Rxf3 {[%clk 0:00:26]}  Nxh7 {[%clk 0:01:23]} 25. Qc2 {[%clk 0:00:23]}  Nf6 {[%clk 0:01:22]} 26. d5 {[%clk 0:00:21]}  Rh8 {[%clk 0:01:15]} 27. Qa4 {[%clk 0:00:19]}  Kb8 {[%clk 0:01:09]} 28. Kc2 {[%clk 0:00:17]}  Qe4+ {[%clk 0:00:59]} 29. Kb3 {[%clk 0:00:17]}  Qxf3 {[%clk 0:00:57]} 30. Qc6 {[%clk 0:00:17]}  Qxe3+ {[%clk 0:00:57]} 31. Ka2 {[%clk 0:00:17]}  Qe7 {[%clk 0:00:57]} 32. a4 {[%clk 0:00:12]}  Qd7 {[%clk 0:00:55]} 0-1


[Site "https://www.chess.com"]

[Event "Titled Tuesday Blitz May 9 Early 2023"]
[White "Zavortink, Matt"]
[Black "Mike24147"]
[WhiteFideId "2034263"]
[WhiteElo "2464"]
[BlackElo "2311"]
[Result "0-1"]
[Round "07"]
[TimeControl "180+2"]
[Date "2023.05.09"]
[WhiteClock "0:00:15"]
[BlackClock "0:00:39"]

1. Nf3 {[%clk 0:03:00]}  d5 {[%clk 0:02:59]} 2. g3 {[%clk 0:03:01]}  Nf6 {[%clk 0:02:59]} 3. Bg2 {[%clk 0:03:01]}  c6 {[%clk 0:02:59]} 4. c4 {[%clk 0:03:01]}  dxc4 {[%clk 0:02:56]} 5. O-O {[%clk 0:03:00]}  Nbd7 {[%clk 0:02:55]} 6. Na3 {[%clk 0:02:59]}  Nb6 {[%clk 0:02:55]} 7. Qc2 {[%clk 0:02:58]}  e6 {[%clk 0:02:46]} 8. Nxc4 {[%clk 0:02:57]}  Nxc4 {[%clk 0:02:44]} 9. Qxc4 {[%clk 0:02:58]}  Be7 {[%clk 0:02:43]} 10. b3 {[%clk 0:02:55]}  O-O {[%clk 0:02:43]} 11. Bb2 {[%clk 0:02:55]}  Qa5 {[%clk 0:02:39]} 12. Rfd1 {[%clk 0:02:49]}  Rd8 {[%clk 0:02:39]} 13. d4 {[%clk 0:02:42]}  Bd7 {[%clk 0:02:33]} 14. Ne5 {[%clk 0:02:39]}  Be8 {[%clk 0:02:34]} 15. e4 {[%clk 0:02:30]}  Rac8 {[%clk 0:02:31]} 16. Nd3 {[%clk 0:02:21]}  c5 {[%clk 0:02:10]} 17. dxc5 {[%clk 0:02:01]}  Bb5 {[%clk 0:01:46]} 18. Qc2 {[%clk 0:01:48]}  Bxd3 {[%clk 0:01:39]} 19. Rxd3 {[%clk 0:01:48]}  Bxc5 {[%clk 0:01:32]} 20. Rxd8+ {[%clk 0:01:43]}  Qxd8 {[%clk 0:01:33]} 21. Rc1 {[%clk 0:01:24]}  Ng4 {[%clk 0:01:24]} 22. Qe2 {[%clk 0:00:43]}  Bxf2+ {[%clk 0:01:18]} 23. Kf1 {[%clk 0:00:42]}  Rxc1+ {[%clk 0:01:08]} 24. Bxc1 {[%clk 0:00:42]}  Qf6 {[%clk 0:01:01]} 25. Bf3 {[%clk 0:00:37]}  Bb6 {[%clk 0:00:44]} 26. Kg2 {[%clk 0:00:36]}  Ne5 {[%clk 0:00:43]} 27. Bb2 {[%clk 0:00:30]}  Qxf3+ {[%clk 0:00:43]} 28. Qxf3 {[%clk 0:00:30]}  Nxf3 {[%clk 0:00:44]} 29. Kxf3 {[%clk 0:00:31]}  Kf8 {[%clk 0:00:45]} 30. g4 {[%clk 0:00:30]}  f6 {[%clk 0:00:45]} 31. h4 {[%clk 0:00:30]}  Ke7 {[%clk 0:00:44]} 32. h5 {[%clk 0:00:26]}  e5 {[%clk 0:00:44]} 33. Ba3+ {[%clk 0:00:25]}  Kf7 {[%clk 0:00:42]} 34. Ke2 {[%clk 0:00:24]}  Bd4 {[%clk 0:00:42]} 35. Kd3 {[%clk 0:00:24]}  b5 {[%clk 0:00:42]} 36. Bd6 {[%clk 0:00:21]}  g6 {[%clk 0:00:39]} 37. a4 {[%clk 0:00:20]}  a6 {[%clk 0:00:37]} 38. axb5 {[%clk 0:00:20]}  axb5 {[%clk 0:00:38]} 39. Ke2 {[%clk 0:00:19]}  gxh5 {[%clk 0:00:38]} 40. gxh5 {[%clk 0:00:20]}  Ke6 {[%clk 0:00:38]} 41. Bb8 {[%clk 0:00:19]}  f5 {[%clk 0:00:38]} 42. Kf3 {[%clk 0:00:17]}  Kf6 {[%clk 0:00:36]} 43. Bd6 {[%clk 0:00:14]}  fxe4+ {[%clk 0:00:33]} 44. Kxe4 {[%clk 0:00:14]}  Kg5 {[%clk 0:00:34]} 45. Bxe5 {[%clk 0:00:14]}  Bxe5 {[%clk 0:00:34]} 46. Kxe5 {[%clk 0:00:15]}  Kxh5 {[%clk 0:00:35]} 47. Kd5 {[%clk 0:00:13]}  Kg4 {[%clk 0:00:35]} 48. Kc5 {[%clk 0:00:14]}  h5 {[%clk 0:00:35]} 49. Kxb5 {[%clk 0:00:15]}  h4 {[%clk 0:00:36]} 50. Ka6 {[%clk 0:00:14]}  h3 {[%clk 0:00:37]} 51. b4 {[%clk 0:00:15]}  h2 {[%clk 0:00:38]} 52. b5 {[%clk 0:00:16]}  h1=Q {[%clk 0:00:38]} 53. b6 {[%clk 0:00:16]}  Qa8+ {[%clk 0:00:38]} 54. Kb5 {[%clk 0:00:15]}  Qb8 {[%clk 0:00:39]} 0-1


[Site "https://www.chess.com"]

[Event "Titled Tuesday Blitz May 9 Early 2023"]
[White "Sowul, Bartosz"]
[Black "Szente Varga, Fruzsina"]
[WhiteFideId "1137590"]
[BlackFideId "712264"]
[WhiteElo "2188"]
[BlackElo "1994"]
[Result "0-1"]
[Round "07"]
[TimeControl "180+2"]
[Date "2023.05.09"]
[WhiteClock "0:00:16"]
[BlackClock "0:00:23"]

1. e4 {[%clk 0:02:22]}  Nf6 {[%clk 0:02:54]} 2. e5 {[%clk 0:02:21]}  Nd5 {[%clk 0:02:52]} 3. d4 {[%clk 0:02:22]}  d6 {[%clk 0:02:52]} 4. Nf3 {[%clk 0:02:22]}  g6 {[%clk 0:02:51]} 5. Bc4 {[%clk 0:02:21]}  c6 {[%clk 0:02:50]} 6. O-O {[%clk 0:02:19]}  Bg7 {[%clk 0:02:50]} 7. Re1 {[%clk 0:02:19]}  O-O {[%clk 0:02:50]} 8. Nbd2 {[%clk 0:02:14]}  Bg4 {[%clk 0:02:45]} 9. h3 {[%clk 0:02:14]}  Bxf3 {[%clk 0:02:44]} 10. Nxf3 {[%clk 0:02:15]}  dxe5 {[%clk 0:02:43]} 11. dxe5 {[%clk 0:02:16]}  Nb6 {[%clk 0:02:36]} 12. Bb3 {[%clk 0:02:10]}  Na6 {[%clk 0:02:33]} 13. Be3 {[%clk 0:02:01]}  Nd5 {[%clk 0:02:26]} 14. Bg5 {[%clk 0:01:47]}  h6 {[%clk 0:02:21]} 15. Bd2 {[%clk 0:01:45]}  Nc5 {[%clk 0:02:07]} 16. Qe2 {[%clk 0:01:37]}  Ne6 {[%clk 0:01:59]} 17. Rad1 {[%clk 0:01:33]}  Qc7 {[%clk 0:01:59]} 18. Qe4 {[%clk 0:01:27]}  Rad8 {[%clk 0:01:51]} 19. c4 {[%clk 0:01:27]}  Nc5 {[%clk 0:01:43]} 20. Qe2 {[%clk 0:01:26]}  Nb6 {[%clk 0:01:38]} 21. Bc2 {[%clk 0:01:22]}  Rd7 {[%clk 0:01:31]} 22. b4 {[%clk 0:01:08]}  Ne6 {[%clk 0:01:30]} 23. Bc3 {[%clk 0:01:03]}  Rfd8 {[%clk 0:01:29]} 24. Rxd7 {[%clk 0:01:03]}  Rxd7 {[%clk 0:01:29]} 25. a4 {[%clk 0:01:01]}  c5 {[%clk 0:01:19]} 26. a5 {[%clk 0:00:53]}  Nc8 {[%clk 0:01:06]} 27. b5 {[%clk 0:00:52]}  b6 {[%clk 0:01:01]} 28. a6 {[%clk 0:00:48]}  Rd8 {[%clk 0:00:40]} 29. Rd1 {[%clk 0:00:46]}  Nf4 {[%clk 0:00:34]} 30. Rxd8+ {[%clk 0:00:40]}  Qxd8 {[%clk 0:00:35]} 31. Qe4 {[%clk 0:00:39]}  Ne6 {[%clk 0:00:30]} 32. Qc6 {[%clk 0:00:34]}  Nf4 {[%clk 0:00:19]} 33. Qe4 {[%clk 0:00:30]}  Ne6 {[%clk 0:00:19]} 34. g3 {[%clk 0:00:30]}  Ng5 {[%clk 0:00:16]} 35. Nxg5 {[%clk 0:00:29]}  hxg5 {[%clk 0:00:17]} 36. Qd5 {[%clk 0:00:22]}  Qxd5 {[%clk 0:00:14]} 37. cxd5 {[%clk 0:00:23]}  Kf8 {[%clk 0:00:15]} 38. f4 {[%clk 0:00:23]}  gxf4 {[%clk 0:00:14]} 39. gxf4 {[%clk 0:00:23]}  Ke8 {[%clk 0:00:15]} 40. Kg2 {[%clk 0:00:24]}  Kd7 {[%clk 0:00:15]} 41. Kf3 {[%clk 0:00:24]}  f6 {[%clk 0:00:16]} 42. Bxg6 {[%clk 0:00:22]}  fxe5 {[%clk 0:00:15]} 43. fxe5 {[%clk 0:00:22]}  e6 {[%clk 0:00:16]} 44. d6 {[%clk 0:00:19]}  Nxd6 {[%clk 0:00:16]} 45. exd6 {[%clk 0:00:18]}  Bxc3 {[%clk 0:00:17]} 46. Ke4 {[%clk 0:00:16]}  Kxd6 {[%clk 0:00:17]} 47. h4 {[%clk 0:00:17]}  Bg7 {[%clk 0:00:17]} 48. h5 {[%clk 0:00:16]}  c4 {[%clk 0:00:18]} 49. Ke3 {[%clk 0:00:15]}  Kc5 {[%clk 0:00:17]} 50. Be8 {[%clk 0:00:15]}  Bh6+ {[%clk 0:00:16]} 51. Ke2 {[%clk 0:00:15]}  c3 {[%clk 0:00:16]} 52. Kd1 {[%clk 0:00:15]}  Kb4 {[%clk 0:00:16]} 53. Kc2 {[%clk 0:00:16]}  e5 {[%clk 0:00:16]} 54. Bc6 {[%clk 0:00:15]}  Bg7 {[%clk 0:00:15]} 55. Kb1 {[%clk 0:00:14]}  Kc4 {[%clk 0:00:15]} 56. Kc2 {[%clk 0:00:14]}  Kd4 {[%clk 0:00:16]} 57. Kd1 {[%clk 0:00:13]}  e4 {[%clk 0:00:16]} 58. Kc2 {[%clk 0:00:13]}  e3 {[%clk 0:00:16]} 59. Bf3 {[%clk 0:00:13]}  Kc5 {[%clk 0:00:15]} 60. Be2 {[%clk 0:00:14]}  Kb4 {[%clk 0:00:15]} 61. Bf1 {[%clk 0:00:14]}  Kc5 {[%clk 0:00:15]} 62. Be2 {[%clk 0:00:15]}  Kd4 {[%clk 0:00:15]} 63. Bf1 {[%clk 0:00:15]}  Ke4 {[%clk 0:00:16]} 64. Be2 {[%clk 0:00:15]}  Kf4 {[%clk 0:00:16]} 65. Kd3 {[%clk 0:00:15]}  Bh8 {[%clk 0:00:15]} 66. Kc2 {[%clk 0:00:15]}  Kg3 {[%clk 0:00:15]} 67. Kd3 {[%clk 0:00:13]}  Kf2 {[%clk 0:00:16]} 68. Bd1 {[%clk 0:00:13]}  Bg7 {[%clk 0:00:15]} 69. Bg4 {[%clk 0:00:12]}  c2 {[%clk 0:00:14]} 70. Kxc2 {[%clk 0:00:12]}  e2 {[%clk 0:00:15]} 71. Bxe2 {[%clk 0:00:11]}  Kxe2 {[%clk 0:00:16]} 72. Kb3 {[%clk 0:00:12]}  Kd3 {[%clk 0:00:16]} 73. Kb4 {[%clk 0:00:12]}  Kd4 {[%clk 0:00:16]} 74. Ka4 {[%clk 0:00:12]}  Kc5 {[%clk 0:00:17]} 75. Ka3 {[%clk 0:00:12]}  Kxb5 {[%clk 0:00:17]} 76. Kb3 {[%clk 0:00:12]}  Kxa6 {[%clk 0:00:18]} 77. Ka4 {[%clk 0:00:13]}  b5+ {[%clk 0:00:18]} 78. Kb3 {[%clk 0:00:13]}  Kb6 {[%clk 0:00:19]} 79. Ka3 {[%clk 0:00:14]}  a5 {[%clk 0:00:19]} 80. Kb3 {[%clk 0:00:14]}  Kc5 {[%clk 0:00:20]} 81. Ka2 {[%clk 0:00:15]}  b4 {[%clk 0:00:21]} 82. Kb1 {[%clk 0:00:16]}  Kc4 {[%clk 0:00:21]} 83. Ka2 {[%clk 0:00:17]}  a4 {[%clk 0:00:22]} 84. Kb1 {[%clk 0:00:17]}  b3 {[%clk 0:00:22]} 85. Kc1 {[%clk 0:00:17]}  a3 {[%clk 0:00:23]} 86. Kd2 {[%clk 0:00:16]}  a2 {[%clk 0:00:23]} 0-1


[Site "https://www.chess.com"]